[Event "Titled Tuesday Blitz June 13 Early 2023"]
[White "Sanhueza, Cristian"]
[Black "Antonio, Jorge Carlos"]
[WhiteFideId "116815"]
[BlackFideId "113190"]
[WhiteElo "2174"]
[BlackElo "2247"]
[Result "1-0"]
[Round "3"]
[TimeControl "180+2"]
[Date "2023.06.13"]
[WhiteClock "0:00:24"]
[BlackClock "0:00:00"]
[Board "202"]

1. e4 {[%clk 0:03:00]}  c5 {[%clk 0:02:58]} 2. Nf3 {[%clk 0:03:01]}  e6 {[%clk 0:02:55]} 3. d4 {[%clk 0:03:01]}  cxd4 {[%clk 0:02:53]} 4. Nxd4 {[%clk 0:03:02]}  a6 {[%clk 0:02:52]} 5. c4 {[%clk 0:03:01]}  Nc6 {[%clk 0:02:52]} 6. Nc3 {[%clk 0:03:01]}  Nf6 {[%clk 0:02:51]} 7. a3 {[%clk 0:02:54]}  Bc5 {[%clk 0:02:50]} 8. Nxc6 {[%clk 0:02:26]}  bxc6 {[%clk 0:02:49]} 9. b4 {[%clk 0:02:26]}  Be7 {[%clk 0:02:45]} 10. Bd3 {[%clk 0:02:24]}  e5 {[%clk 0:02:41]} 11. O-O {[%clk 0:02:20]}  d6 {[%clk 0:02:30]} 12. h3 {[%clk 0:02:17]}  h6 {[%clk 0:02:27]} 13. Be3 {[%clk 0:02:10]}  Be6 {[%clk 0:02:26]} 14. Rc1 {[%clk 0:02:06]}  O-O {[%clk 0:02:23]} 15. Qf3 {[%clk 0:01:50]}  Qd7 {[%clk 0:02:03]} 16. Rfd1 {[%clk 0:01:49]}  Qb7 {[%clk 0:01:58]} 17. Qe2 {[%clk 0:01:33]}  Rfd8 {[%clk 0:01:36]} 18. Bb1 {[%clk 0:01:33]}  Rac8 {[%clk 0:01:26]} 19. Na4 {[%clk 0:01:33]}  Rb8 {[%clk 0:01:18]} 20. Nc3 {[%clk 0:01:11]}  Ra8 {[%clk 0:01:13]} 21. Ba2 {[%clk 0:01:09]}  Rac8 {[%clk 0:00:57]} 22. Rd2 {[%clk 0:01:00]}  Ra8 {[%clk 0:00:55]} 23. Rcd1 {[%clk 0:00:59]}  Qc7 {[%clk 0:00:54]} 24. f3 {[%clk 0:00:57]}  Rab8 {[%clk 0:00:53]} 25. Na4 {[%clk 0:00:55]}  Rbc8 {[%clk 0:00:46]} 26. Rd3 {[%clk 0:00:56]}  Rb8 {[%clk 0:00:45]} 27. c5 {[%clk 0:00:55]}  d5 {[%clk 0:00:43]} 28. exd5 {[%clk 0:00:55]}  cxd5 {[%clk 0:00:43]} 29. Bf2 {[%clk 0:00:56]}  d4 {[%clk 0:00:42]} 30. Bxe6 {[%clk 0:00:55]}  fxe6 {[%clk 0:00:41]} 31. Qa2 {[%clk 0:00:56]}  Nd5 {[%clk 0:00:40]} 32. Nb6 {[%clk 0:00:54]}  Bf6 {[%clk 0:00:34]} 33. Nxd5 {[%clk 0:00:49]}  Rxd5 {[%clk 0:00:33]} 34. Bg3 {[%clk 0:00:49]}  Qc6 {[%clk 0:00:28]} 35. Qc4 {[%clk 0:00:47]}  Qb5 {[%clk 0:00:26]} 36. Qxb5 {[%clk 0:00:47]}  axb5 {[%clk 0:00:26]} 37. Rc1 {[%clk 0:00:47]}  Ra8 {[%clk 0:00:20]} 38. Rc2 {[%clk 0:00:39]}  Ra6 {[%clk 0:00:18]} 39. Ra2 {[%clk 0:00:35]}  Rc6 {[%clk 0:00:17]} 40. Kf2 {[%clk 0:00:36]}  Rd7 {[%clk 0:00:15]} 41. Ke2 {[%clk 0:00:36]}  Ra7 {[%clk 0:00:14]} 42. Kd2 {[%clk 0:00:36]}  Kf7 {[%clk 0:00:14]} 43. Kc2 {[%clk 0:00:37]}  g6 {[%clk 0:00:13]} 44. Kb3 {[%clk 0:00:37]}  Ke7 {[%clk 0:00:13]} 45. a4 {[%clk 0:00:38]}  bxa4+ {[%clk 0:00:12]} 46. Rxa4 {[%clk 0:00:39]}  Rca6 {[%clk 0:00:06]} 47. Rxa6 {[%clk 0:00:36]}  Rxa6 {[%clk 0:00:06]} 48. Rd2 {[%clk 0:00:35]}  Kd7 {[%clk 0:00:05]} 49. b5 {[%clk 0:00:33]}  Ra1 {[%clk 0:00:04]} 50. b6 {[%clk 0:00:28]}  Kc6 {[%clk 0:00:03]} 51. Rc2 {[%clk 0:00:27]}  Rb1+ {[%clk 0:00:03]} 52. Kc4 {[%clk 0:00:25]}  Rb5 {[%clk 0:00:00]} 53. Kd3 {[%clk 0:00:24]} 1-0


[Site "https://www.chess.com"]

[Event "Titled Tuesday Blitz June 13 Early 2023"]
[White "Palczert, Matyas"]
[Black "Al Mukhaini, Shima"]
[WhiteFideId "784958"]
[BlackFideId "22005854"]
[WhiteElo "2224"]
[BlackElo "2261"]
[Result "1-0"]
[Round "3"]
[TimeControl "180+2"]
[Date "2023.06.13"]
[WhiteClock "0:01:13"]
[BlackClock "0:00:19"]
[Board "204"]

1. e4 {[%clk 0:02:54]}  g6 {[%clk 0:03:00]} 2. d4 {[%clk 0:02:52]}  Bg7 {[%clk 0:02:59]} 3. Nf3 {[%clk 0:02:52]}  b6 {[%clk 0:02:58]} 4. c4 {[%clk 0:02:47]}  Bb7 {[%clk 0:02:58]} 5. Nc3 {[%clk 0:02:47]}  e6 {[%clk 0:02:57]} 6. Be2 {[%clk 0:02:43]}  d6 {[%clk 0:02:58]} 7. O-O {[%clk 0:02:40]}  Ne7 {[%clk 0:02:51]} 8. Be3 {[%clk 0:02:35]}  Nd7 {[%clk 0:02:50]} 9. Qd2 {[%clk 0:02:34]}  O-O {[%clk 0:02:43]} 10. Bh6 {[%clk 0:02:32]}  Bxh6 {[%clk 0:02:39]} 11. Qxh6 {[%clk 0:02:31]}  f6 {[%clk 0:02:32]} 12. Rad1 {[%clk 0:02:27]}  Qe8 {[%clk 0:02:31]} 13. Qh3 {[%clk 0:02:13]}  Qf7 {[%clk 0:02:32]} 14. d5 {[%clk 0:02:12]}  Qg7 {[%clk 0:02:32]} 15. Qxe6+ {[%clk 0:02:07]}  Rf7 {[%clk 0:02:24]} 16. Qxd7 {[%clk 0:01:59]}  Qh6 {[%clk 0:02:10]} 17. Qh3 {[%clk 0:01:51]}  Qxh3 {[%clk 0:02:09]} 18. gxh3 {[%clk 0:01:51]}  Rg7 {[%clk 0:02:08]} 19. Nd4 {[%clk 0:01:50]}  g5 {[%clk 0:02:09]} 20. Ne6 {[%clk 0:01:50]}  Rg6 {[%clk 0:02:06]} 21. Nxc7 {[%clk 0:01:50]}  Rc8 {[%clk 0:02:05]} 22. Ne6 {[%clk 0:01:49]}  f5 {[%clk 0:02:02]} 23. Nb5 {[%clk 0:01:44]}  g4 {[%clk 0:02:03]} 24. hxg4 {[%clk 0:01:42]}  fxg4 {[%clk 0:01:59]} 25. Nxd6 {[%clk 0:01:41]}  Rd8 {[%clk 0:01:45]} 26. Nxb7 {[%clk 0:01:41]}  Rb8 {[%clk 0:01:41]} 27. d6 {[%clk 0:01:35]}  Rxb7 {[%clk 0:01:31]} 28. dxe7 {[%clk 0:01:33]}  Rxe7 {[%clk 0:01:28]} 29. Nf4 {[%clk 0:01:31]}  Rgg7 {[%clk 0:01:23]} 30. Nd5 {[%clk 0:01:21]}  Rxe4 {[%clk 0:01:20]} 31. Nf6+ {[%clk 0:01:21]}  Kf7 {[%clk 0:01:16]} 32. Nxe4 {[%clk 0:01:20]}  Ke6 {[%clk 0:01:10]} 33. Ng3 {[%clk 0:01:19]}  Ke5 {[%clk 0:01:11]} 34. Rd5+ {[%clk 0:01:18]}  Ke6 {[%clk 0:00:57]} 35. Rfd1 {[%clk 0:01:17]}  Kf6 {[%clk 0:00:49]} 36. Rd6+ {[%clk 0:01:17]}  Kf7 {[%clk 0:00:46]} 37. Rd7+ {[%clk 0:01:16]}  Kg6 {[%clk 0:00:46]} 38. R1d6+ {[%clk 0:01:15]}  Kg5 {[%clk 0:00:42]} 39. Rxg7+ {[%clk 0:01:14]}  Kf4 {[%clk 0:00:42]} 40. Rd5 {[%clk 0:01:14]}  h5 {[%clk 0:00:19]} 41. Rf5# {[%clk 0:01:13]} 1-0


[Site "https://www.chess.com"]

[Event "Titled Tuesday Blitz June 13 Early 2023"]
[White "Smiechu"]
[Black "Leschinsky, Gary"]
[BlackFideId "30951321"]
[WhiteElo "2406"]
[BlackElo "2020"]
[Result "1-0"]
[Round "3"]
[TimeControl "180+2"]
[Date "2023.06.13"]
[WhiteClock "0:01:38"]
[BlackClock "0:00:05"]
[Board "209"]

1. e4 {[%clk 0:02:54]}  c5 {[%clk 0:02:58]} 2. Nf3 {[%clk 0:02:54]}  e6 {[%clk 0:02:43]} 3. d4 {[%clk 0:02:53]}  cxd4 {[%clk 0:02:44]} 4. Nxd4 {[%clk 0:02:53]}  Nc6 {[%clk 0:02:44]} 5. Nc3 {[%clk 0:02:53]}  Qc7 {[%clk 0:02:43]} 6. Be3 {[%clk 0:02:53]}  Nf6 {[%clk 0:02:39]} 7. Bd3 {[%clk 0:02:44]}  a6 {[%clk 0:02:34]} 8. O-O {[%clk 0:02:44]}  h5 {[%clk 0:02:13]} 9. h3 {[%clk 0:02:43]}  Bd6 {[%clk 0:01:48]} 10. f4 {[%clk 0:02:42]}  Nxd4 {[%clk 0:01:46]} 11. e5 {[%clk 0:02:42]}  Bc5 {[%clk 0:01:37]} 12. exf6 {[%clk 0:02:36]}  gxf6 {[%clk 0:01:38]} 13. Ne4 {[%clk 0:02:31]}  Nb3 {[%clk 0:01:24]} 14. Bxc5 {[%clk 0:02:25]}  Nxc5 {[%clk 0:01:22]} 15. Nxf6+ {[%clk 0:02:25]}  Ke7 {[%clk 0:01:21]} 16. Ne4 {[%clk 0:02:22]}  f5 {[%clk 0:00:58]} 17. Nc3 {[%clk 0:02:16]}  b5 {[%clk 0:00:52]} 18. Qe1 {[%clk 0:02:13]}  Nxd3 {[%clk 0:00:45]} 19. cxd3 {[%clk 0:01:55]}  Bb7 {[%clk 0:00:30]} 20. Qh4+ {[%clk 0:01:54]}  Kf7 {[%clk 0:00:23]} 21. Ne4 {[%clk 0:01:54]}  fxe4 {[%clk 0:00:20]} 22. f5 {[%clk 0:01:54]}  Qc5+ {[%clk 0:00:20]} 23. Kh1 {[%clk 0:01:52]}  exf5 {[%clk 0:00:20]} 24. Qg5 {[%clk 0:01:48]}  Ke6 {[%clk 0:00:10]} 25. Qg6+ {[%clk 0:01:47]}  Ke7 {[%clk 0:00:09]} 26. Rxf5 {[%clk 0:01:46]}  Bd5 {[%clk 0:00:10]} 27. dxe4 {[%clk 0:01:43]}  Qc2 {[%clk 0:00:07]} 28. exd5 {[%clk 0:01:39]}  Rag8 {[%clk 0:00:08]} 29. Rf7+ {[%clk 0:01:38]}  Kd8 {[%clk 0:00:05]} 30. Qxc2 {[%clk 0:01:38]} 1-0


[Site "https://www.chess.com"]

[Event "Titled Tuesday Blitz June 13 Early 2023"]
[White "Kiseleva, Arina"]
[Black "Gomez Barrera, Javiera Belen"]
[WhiteFideId "4164989"]
[BlackFideId "3418723"]
[WhiteElo "1701"]
[BlackElo "2119"]
[Result "0-1"]
[Round "3"]
[TimeControl "180+2"]
[Date "2023.06.13"]
[WhiteClock "0:00:00"]
[BlackClock "0:00:04"]
[Board "210"]

1. d4 {[%clk 0:03:00]}  d5 {[%clk 0:02:55]} 2. Nf3 {[%clk 0:03:00]}  Nf6 {[%clk 0:02:54]} 3. c4 {[%clk 0:02:59]}  e6 {[%clk 0:02:54]} 4. e3 {[%clk 0:02:48]}  Be7 {[%clk 0:02:49]} 5. Nbd2 {[%clk 0:02:46]}  O-O {[%clk 0:02:49]} 6. Bd3 {[%clk 0:02:46]}  a6 {[%clk 0:02:48]} 7. O-O {[%clk 0:02:45]}  dxc4 {[%clk 0:02:47]} 8. Nxc4 {[%clk 0:02:45]}  b5 {[%clk 0:02:47]} 9. Nce5 {[%clk 0:02:45]}  Bb7 {[%clk 0:02:47]} 10. b3 {[%clk 0:02:41]}  Nbd7 {[%clk 0:02:45]} 11. Bb2 {[%clk 0:02:40]}  c5 {[%clk 0:02:45]} 12. Nxd7 {[%clk 0:02:35]}  Qxd7 {[%clk 0:02:36]} 13. dxc5 {[%clk 0:02:34]}  Rad8 {[%clk 0:02:32]} 14. Be2 {[%clk 0:02:20]}  Qxd1 {[%clk 0:02:29]} 15. Rfxd1 {[%clk 0:02:20]}  Bxc5 {[%clk 0:02:30]} 16. Rac1 {[%clk 0:02:16]}  Bb6 {[%clk 0:02:29]} 17. h3 {[%clk 0:02:13]}  Ne4 {[%clk 0:02:14]} 18. Nd4 {[%clk 0:01:45]}  h6 {[%clk 0:02:08]} 19. Nc6 {[%clk 0:01:32]}  Rxd1+ {[%clk 0:02:05]} 20. Bxd1 {[%clk 0:01:33]}  Kh8 {[%clk 0:01:28]} 21. Bd4 {[%clk 0:01:10]}  Bxd4 {[%clk 0:01:18]} 22. Nxd4 {[%clk 0:01:11]}  Rc8 {[%clk 0:01:18]} 23. Rxc8+ {[%clk 0:00:54]}  Bxc8 {[%clk 0:01:19]} 24. Kf1 {[%clk 0:00:38]}  Nc3 {[%clk 0:01:18]} 25. Bh5 {[%clk 0:00:34]}  g6 {[%clk 0:01:17]} 26. Bf3 {[%clk 0:00:33]}  e5 {[%clk 0:00:55]} 27. Nc6 {[%clk 0:00:21]}  e4 {[%clk 0:00:55]} 28. Be2 {[%clk 0:00:14]}  Nxa2 {[%clk 0:00:55]} 29. Ke1 {[%clk 0:00:08]}  Nc3 {[%clk 0:00:23]} 30. Bf1 {[%clk 0:00:08]}  Be6 {[%clk 0:00:20]} 31. b4 {[%clk 0:00:06]}  Bd5 {[%clk 0:00:17]} 32. Nb8 {[%clk 0:00:05]}  Bb7 {[%clk 0:00:16]} 33. Nd7 {[%clk 0:00:05]}  Na2 {[%clk 0:00:10]} 34. Nc5 {[%clk 0:00:05]}  Bc8 {[%clk 0:00:11]} 35. Nxe4 {[%clk 0:00:05]}  Nxb4 {[%clk 0:00:11]} 36. Kd2 {[%clk 0:00:05]}  Nd5 {[%clk 0:00:11]} 37. Nc5 {[%clk 0:00:04]}  Kg7 {[%clk 0:00:09]} 38. e4 {[%clk 0:00:04]}  Nc7 {[%clk 0:00:09]} 39. Kc3 {[%clk 0:00:04]}  Ne6 {[%clk 0:00:10]} 40. Nd3 {[%clk 0:00:03]}  a5 {[%clk 0:00:09]} 41. Nb2 {[%clk 0:00:03]}  b4+ {[%clk 0:00:09]} 42. Kb3 {[%clk 0:00:03]}  Bd7 {[%clk 0:00:08]} 43. g3 {[%clk 0:00:03]}  Nd4+ {[%clk 0:00:09]} 44. Kc4 {[%clk 0:00:03]}  Nf3 {[%clk 0:00:08]} 45. Kc5 {[%clk 0:00:03]}  b3 {[%clk 0:00:07]} 46. Bc4 {[%clk 0:00:02]}  Nd2 {[%clk 0:00:06]} 47. Bd5 {[%clk 0:00:02]}  a4 {[%clk 0:00:05]} 48. Kd6 {[%clk 0:00:02]}  a3 {[%clk 0:00:04]} 49. Kxd7 {[%clk 0:00:00]}  axb2 {[%clk 0:00:04]} 0-1


[Site "https://www.chess.com"]

[Event "Titled Tuesday Blitz June 13 Early 2023"]
[White "Mirzanurov, Bulat"]
[Black "Miller, Luke C"]
[WhiteFideId "4184521"]
[BlackFideId "2096935"]
[WhiteElo "2005"]
[BlackElo "1836"]
[Result "0-1"]
[Round "3"]
[TimeControl "180+2"]
[Date "2023.06.13"]
[WhiteClock "0:00:10"]
[BlackClock "0:00:21"]
[Board "212"]

1. e4 {[%clk 0:02:58]}  c5 {[%clk 0:03:00]} 2. Nf3 {[%clk 0:02:56]}  d6 {[%clk 0:03:01]} 3. d4 {[%clk 0:02:55]}  cxd4 {[%clk 0:03:02]} 4. Nxd4 {[%clk 0:02:55]}  Nf6 {[%clk 0:03:02]} 5. Nc3 {[%clk 0:02:55]}  g6 {[%clk 0:03:03]} 6. f3 {[%clk 0:02:54]}  Bg7 {[%clk 0:03:03]} 7. Be3 {[%clk 0:02:54]}  O-O {[%clk 0:03:04]} 8. Qd2 {[%clk 0:02:54]}  Nc6 {[%clk 0:03:04]} 9. O-O-O {[%clk 0:02:54]}  d5 {[%clk 0:03:03]} 10. Nxc6 {[%clk 0:02:49]}  bxc6 {[%clk 0:03:00]} 11. exd5 {[%clk 0:02:44]}  Nxd5 {[%clk 0:03:00]} 12. Bd4 {[%clk 0:02:44]}  e5 {[%clk 0:02:52]} 13. Bc5 {[%clk 0:02:42]}  Be6 {[%clk 0:02:49]} 14. Be2 {[%clk 0:02:12]}  Rb8 {[%clk 0:02:42]} 15. Ne4 {[%clk 0:02:06]}  Re8 {[%clk 0:02:20]} 16. Kb1 {[%clk 0:01:40]}  f5 {[%clk 0:02:15]} 17. Nc3 {[%clk 0:01:33]}  e4 {[%clk 0:02:11]} 18. Bd4 {[%clk 0:01:29]}  e3 {[%clk 0:01:52]} 19. Qe1 {[%clk 0:01:00]}  Qa5 {[%clk 0:01:03]} 20. Nxd5 {[%clk 0:00:36]}  Qxd5 {[%clk 0:00:52]} 21. c4 {[%clk 0:00:35]}  Qxd4 {[%clk 0:00:42]} 22. Rxd4 {[%clk 0:00:34]}  Bxd4 {[%clk 0:00:43]} 23. b3 {[%clk 0:00:33]}  c5 {[%clk 0:00:35]} 24. Qa5 {[%clk 0:00:30]}  f4 {[%clk 0:00:29]} 25. Qxa7 {[%clk 0:00:19]}  Bf5+ {[%clk 0:00:26]} 26. Kc1 {[%clk 0:00:17]}  Ra8 {[%clk 0:00:24]} 27. Qc7 {[%clk 0:00:11]}  Rxa2 {[%clk 0:00:22]} 28. Bd1 {[%clk 0:00:10]}  Ra1# {[%clk 0:00:21]} 0-1


[Site "https://www.chess.com"]

[Event "Titled Tuesday Blitz June 13 Early 2023"]
[White "Buchenau, Frank"]
[Black "De Souza, Cristiano Gomes"]
[WhiteFideId "4604350"]
[BlackFideId "2151758"]
[WhiteElo "2157"]
[BlackElo "2068"]
[Result "1-0"]
[Round "3"]
[TimeControl "180+2"]
[Date "2023.06.13"]
[WhiteClock "0:01:11"]
[BlackClock "0:00:47"]
[Board "213"]

1. e4 {[%clk 0:02:57]}  c5 {[%clk 0:02:59]} 2. Nf3 {[%clk 0:02:56]}  d6 {[%clk 0:02:58]} 3. Bb5+ {[%clk 0:02:56]}  Bd7 {[%clk 0:02:58]} 4. Bxd7+ {[%clk 0:02:56]}  Qxd7 {[%clk 0:02:59]} 5. c4 {[%clk 0:02:55]}  Nc6 {[%clk 0:02:59]} 6. O-O {[%clk 0:02:53]}  g6 {[%clk 0:02:59]} 7. d4 {[%clk 0:02:52]}  cxd4 {[%clk 0:03:00]} 8. Nxd4 {[%clk 0:02:52]}  Bg7 {[%clk 0:03:00]} 9. Be3 {[%clk 0:02:52]}  Nf6 {[%clk 0:02:59]} 10. Nc3 {[%clk 0:02:52]}  O-O {[%clk 0:02:58]} 11. f3 {[%clk 0:02:46]}  Rfc8 {[%clk 0:02:55]} 12. b3 {[%clk 0:02:41]}  b6 {[%clk 0:02:53]} 13. Qd2 {[%clk 0:02:37]}  Ne8 {[%clk 0:02:52]} 14. Rad1 {[%clk 0:02:33]}  Nc7 {[%clk 0:02:52]} 15. Nde2 {[%clk 0:02:18]}  Ne6 {[%clk 0:02:37]} 16. f4 {[%clk 0:02:15]}  Nc5 {[%clk 0:02:33]} 17. e5 {[%clk 0:02:10]}  Rd8 {[%clk 0:02:26]} 18. exd6 {[%clk 0:02:09]}  exd6 {[%clk 0:02:20]} 19. f5 {[%clk 0:02:01]}  Be5 {[%clk 0:02:02]} 20. Nd5 {[%clk 0:01:43]}  Ne7 {[%clk 0:01:59]} 21. Bg5 {[%clk 0:01:40]}  Nxd5 {[%clk 0:01:49]} 22. Bxd8 {[%clk 0:01:39]}  Nc7 {[%clk 0:01:16]} 23. Bg5 {[%clk 0:01:23]}  Re8 {[%clk 0:01:12]} 24. Bf4 {[%clk 0:01:21]}  Qc6 {[%clk 0:01:08]} 25. Nc3 {[%clk 0:01:17]}  Ne4 {[%clk 0:01:05]} 26. Nxe4 {[%clk 0:01:16]}  Qxe4 {[%clk 0:01:05]} 27. Bxe5 {[%clk 0:01:16]}  dxe5 {[%clk 0:01:03]} 28. Qd7 {[%clk 0:01:15]}  Qe3+ {[%clk 0:00:56]} 29. Kh1 {[%clk 0:01:14]}  Qc5 {[%clk 0:00:57]} 30. fxg6 {[%clk 0:01:12]}  fxg6 {[%clk 0:00:54]} 31. Qf7+ {[%clk 0:01:11]}  Kh8 {[%clk 0:00:47]} 32. Rd7 {[%clk 0:01:11]} 1-0


[Site "https://www.chess.com"]

[Event "Titled Tuesday Blitz June 13 Early 2023"]
[White "Luxama, Jacques Muller"]
[Black "Garcia Cuenca, Victor"]
[WhiteFideId "11900113"]
[BlackFideId "2250829"]
[WhiteElo "1931"]
[BlackElo "2329"]
[Result "0-1"]
[Round "3"]
[TimeControl "180+2"]
[Date "2023.06.13"]
[WhiteClock "0:00:00"]
[BlackClock "0:00:10"]
[Board "214"]

1. d4 {[%clk 0:03:00]}  Nf6 {[%clk 0:02:58]} 2. c4 {[%clk 0:03:00]}  e6 {[%clk 0:02:57]} 3. Nf3 {[%clk 0:02:57]}  Bb4+ {[%clk 0:02:55]} 4. Bd2 {[%clk 0:02:55]}  Be7 {[%clk 0:02:55]} 5. g3 {[%clk 0:02:52]}  d5 {[%clk 0:02:54]} 6. Bg2 {[%clk 0:02:53]}  O-O {[%clk 0:02:54]} 7. O-O {[%clk 0:02:52]}  c6 {[%clk 0:02:53]} 8. Qc2 {[%clk 0:02:50]}  Nbd7 {[%clk 0:02:53]} 9. Bf4 {[%clk 0:02:48]}  Ne4 {[%clk 0:02:52]} 10. Nbd2 {[%clk 0:02:46]}  f5 {[%clk 0:02:47]} 11. Ne5 {[%clk 0:02:30]}  g5 {[%clk 0:02:32]} 12. Nxd7 {[%clk 0:02:28]}  Bxd7 {[%clk 0:02:32]} 13. Be5 {[%clk 0:02:28]}  Nd6 {[%clk 0:02:24]} 14. Rad1 {[%clk 0:02:00]}  Nf7 {[%clk 0:02:21]} 15. f4 {[%clk 0:01:54]}  Nxe5 {[%clk 0:02:14]} 16. dxe5 {[%clk 0:01:51]}  Qe8 {[%clk 0:01:54]} 17. Kh1 {[%clk 0:01:44]}  g4 {[%clk 0:01:35]} 18. a3 {[%clk 0:01:35]}  h5 {[%clk 0:01:33]} 19. Rfe1 {[%clk 0:01:31]}  h4 {[%clk 0:01:29]} 20. b4 {[%clk 0:01:29]}  a5 {[%clk 0:01:27]} 21. Qc3 {[%clk 0:01:24]}  axb4 {[%clk 0:01:20]} 22. axb4 {[%clk 0:01:22]}  Qh5 {[%clk 0:01:17]} 23. Kg1 {[%clk 0:01:18]}  Kf7 {[%clk 0:01:09]} 24. e4 {[%clk 0:01:14]}  hxg3 {[%clk 0:01:05]} 25. hxg3 {[%clk 0:01:09]}  fxe4 {[%clk 0:00:44]} 26. Nxe4 {[%clk 0:01:05]}  Ra2 {[%clk 0:00:45]} 27. Rd2 {[%clk 0:00:51]}  Rxd2 {[%clk 0:00:38]} 28. Qxd2 {[%clk 0:00:49]}  Ra8 {[%clk 0:00:28]} 29. Nc5 {[%clk 0:00:44]}  Be8 {[%clk 0:00:20]} 30. cxd5 {[%clk 0:00:42]}  cxd5 {[%clk 0:00:19]} 31. Bxd5 {[%clk 0:00:37]}  Bxc5+ {[%clk 0:00:19]} 32. bxc5 {[%clk 0:00:35]}  exd5 {[%clk 0:00:20]} 33. Qxd5+ {[%clk 0:00:35]}  Kf8 {[%clk 0:00:20]} 34. Qd6+ {[%clk 0:00:29]}  Kg8 {[%clk 0:00:19]} 35. Qf6 {[%clk 0:00:10]}  Bc6 {[%clk 0:00:17]} 36. Qe6+ {[%clk 0:00:06]}  Kh7 {[%clk 0:00:14]} 37. Qe7+ {[%clk 0:00:05]}  Kg8 {[%clk 0:00:14]} 38. Qe6+ {[%clk 0:00:03]}  Kf8 {[%clk 0:00:10]} 39. Qf6+ {[%clk 0:00:02]}  Qf7 {[%clk 0:00:09]} 40. Qh8+ {[%clk 0:00:00]}  Qg8 {[%clk 0:00:10]} 0-1


[Site "https://www.chess.com"]

[Event "Titled Tuesday Blitz June 13 Early 2023"]
[White "Lopez Idarraga, Daniel Eduardo"]
[Black "Kornyukov, Alexey"]
[WhiteFideId "4405501"]
[BlackFideId "4150457"]
[WhiteElo "1980"]
[BlackElo "2352"]
[Result "1-0"]
[Round "3"]
[TimeControl "180+2"]
[Date "2023.06.13"]
[WhiteClock "0:01:11"]
[BlackClock "0:00:00"]
[Board "218"]

1. d4 {[%clk 0:03:00]}  d5 {[%clk 0:02:56]} 2. Bf4 {[%clk 0:02:51]}  Nf6 {[%clk 0:02:52]} 3. e3 {[%clk 0:02:50]}  c5 {[%clk 0:02:51]} 4. c3 {[%clk 0:02:49]}  Nc6 {[%clk 0:02:50]} 5. Nd2 {[%clk 0:02:49]}  Qb6 {[%clk 0:02:48]} 6. Qb3 {[%clk 0:02:47]}  c4 {[%clk 0:02:33]} 7. Qc2 {[%clk 0:02:46]}  g6 {[%clk 0:02:27]} 8. Ngf3 {[%clk 0:02:42]}  Bf5 {[%clk 0:02:22]} 9. Qc1 {[%clk 0:02:43]}  Nh5 {[%clk 0:02:16]} 10. Bg5 {[%clk 0:02:41]}  h6 {[%clk 0:02:07]} 11. Bh4 {[%clk 0:02:40]}  g5 {[%clk 0:02:08]} 12. Bg3 {[%clk 0:02:40]}  Nxg3 {[%clk 0:02:01]} 13. hxg3 {[%clk 0:02:41]}  Bg7 {[%clk 0:02:02]} 14. Be2 {[%clk 0:02:41]}  O-O {[%clk 0:01:55]} 15. Bd1 {[%clk 0:02:40]}  Bg6 {[%clk 0:01:48]} 16. Bc2 {[%clk 0:02:40]}  f5 {[%clk 0:01:49]} 17. b3 {[%clk 0:02:32]}  cxb3 {[%clk 0:01:12]} 18. axb3 {[%clk 0:02:33]}  e5 {[%clk 0:01:05]} 19. O-O {[%clk 0:02:30]}  e4 {[%clk 0:01:03]} 20. Nh2 {[%clk 0:02:28]}  f4 {[%clk 0:01:02]} 21. gxf4 {[%clk 0:02:26]}  gxf4 {[%clk 0:01:03]} 22. Qa3 {[%clk 0:02:20]}  Qd8 {[%clk 0:00:42]} 23. c4 {[%clk 0:02:14]}  Nxd4 {[%clk 0:00:22]} 24. exd4 {[%clk 0:02:13]}  Bxd4 {[%clk 0:00:23]} 25. Rad1 {[%clk 0:02:11]}  Qg5 {[%clk 0:00:16]} 26. Ndf3 {[%clk 0:02:06]}  exf3 {[%clk 0:00:08]} 27. Nxf3 {[%clk 0:02:07]}  Qg4 {[%clk 0:00:07]} 28. Nxd4 {[%clk 0:02:06]}  Bxc2 {[%clk 0:00:06]} 29. Nxc2 {[%clk 0:02:07]}  f3 {[%clk 0:00:06]} 30. Ne3 {[%clk 0:02:03]}  Qg7 {[%clk 0:00:05]} 31. Rxd5 {[%clk 0:01:53]}  Rae8 {[%clk 0:00:06]} 32. Qa1 {[%clk 0:01:43]}  Qg6 {[%clk 0:00:04]} 33. g3 {[%clk 0:01:28]}  Rxe3 {[%clk 0:00:02]} 34. Re5 {[%clk 0:01:15]}  Re2 {[%clk 0:00:02]} 35. Rxe2 {[%clk 0:01:13]}  fxe2 {[%clk 0:00:01]} 36. Re1 {[%clk 0:01:13]}  Qd3 {[%clk 0:00:00]} 37. Qe5 {[%clk 0:01:11]} 1-0


[Site "https://www.chess.com"]

[Event "Titled Tuesday Blitz June 13 Early 2023"]
[White "Winkels, Marcel"]
[Black "Herzog2012"]
[WhiteFideId "1003887"]
[WhiteElo "1900"]
[BlackElo "2392"]
[Result "0-1"]
[Round "3"]
[TimeControl "180+2"]
[Date "2023.06.13"]
[WhiteClock "0:00:00"]
[BlackClock "0:00:15"]
[Board "220"]

1. e4 {[%clk 0:03:00]}  c5 {[%clk 0:02:59]} 2. Nf3 {[%clk 0:02:59]}  Nc6 {[%clk 0:02:59]} 3. Bc4 {[%clk 0:02:58]}  d6 {[%clk 0:02:58]} 4. O-O {[%clk 0:02:47]}  Nf6 {[%clk 0:02:56]} 5. Nc3 {[%clk 0:02:47]}  g6 {[%clk 0:02:43]} 6. d4 {[%clk 0:02:43]}  cxd4 {[%clk 0:02:42]} 7. Nxd4 {[%clk 0:02:43]}  Bg7 {[%clk 0:02:43]} 8. Bb3 {[%clk 0:02:33]}  O-O {[%clk 0:02:41]} 9. h3 {[%clk 0:02:33]}  Bd7 {[%clk 0:02:38]} 10. Be3 {[%clk 0:02:32]}  Rc8 {[%clk 0:02:35]} 11. Qd3 {[%clk 0:02:24]}  Ne5 {[%clk 0:02:30]} 12. Qe2 {[%clk 0:02:24]}  Rxc3 {[%clk 0:02:29]} 13. bxc3 {[%clk 0:02:20]}  Nxe4 {[%clk 0:02:29]} 14. f4 {[%clk 0:02:13]}  Nc6 {[%clk 0:02:21]} 15. Nxc6 {[%clk 0:01:59]}  Bxc6 {[%clk 0:02:20]} 16. f5 {[%clk 0:01:48]}  Ng3 {[%clk 0:02:19]} 17. Qf2 {[%clk 0:01:41]}  Nxf1 {[%clk 0:01:54]} 18. Rxf1 {[%clk 0:01:38]}  d5 {[%clk 0:01:53]} 19. c4 {[%clk 0:01:30]}  d4 {[%clk 0:01:46]} 20. Bg5 {[%clk 0:01:29]}  h6 {[%clk 0:01:35]} 21. Bd2 {[%clk 0:01:12]}  Be4 {[%clk 0:01:14]} 22. fxg6 {[%clk 0:01:04]}  fxg6 {[%clk 0:01:12]} 23. Qe1 {[%clk 0:01:04]}  Rxf1+ {[%clk 0:01:11]} 24. Qxf1 {[%clk 0:01:02]}  Kh7 {[%clk 0:00:46]} 25. c5 {[%clk 0:00:56]}  Bd5 {[%clk 0:00:41]} 26. Qe2 {[%clk 0:00:45]}  Bxb3 {[%clk 0:00:40]} 27. axb3 {[%clk 0:00:42]}  e5 {[%clk 0:00:34]} 28. Qe4 {[%clk 0:00:40]}  Qd7 {[%clk 0:00:34]} 29. h4 {[%clk 0:00:35]}  Qc6 {[%clk 0:00:34]} 30. Qf3 {[%clk 0:00:30]}  Qxf3 {[%clk 0:00:29]} 31. gxf3 {[%clk 0:00:30]}  Kg8 {[%clk 0:00:29]} 32. Kf1 {[%clk 0:00:28]}  Kf7 {[%clk 0:00:28]} 33. Ke2 {[%clk 0:00:28]}  Ke6 {[%clk 0:00:28]} 34. Kd3 {[%clk 0:00:28]}  Kd5 {[%clk 0:00:29]} 35. b4 {[%clk 0:00:28]}  h5 {[%clk 0:00:20]} 36. Bg5 {[%clk 0:00:23]}  Bf8 {[%clk 0:00:20]} 37. Bf6 {[%clk 0:00:20]}  b6 {[%clk 0:00:17]} 38. cxb6 {[%clk 0:00:19]}  axb6 {[%clk 0:00:18]} 39. c3 {[%clk 0:00:18]}  dxc3 {[%clk 0:00:15]} 40. Kxc3 {[%clk 0:00:18]}  b5 {[%clk 0:00:14]} 41. Bh8 {[%clk 0:00:14]}  Be7 {[%clk 0:00:14]} 42. Bg7 {[%clk 0:00:07]}  Bxh4 {[%clk 0:00:14]} 43. Bh6 {[%clk 0:00:07]}  Be1+ {[%clk 0:00:14]} 44. Kb3 {[%clk 0:00:06]}  h4 {[%clk 0:00:14]} 45. Be3 {[%clk 0:00:04]}  h3 {[%clk 0:00:15]} 46. Bg1 {[%clk 0:00:00]}  Bg3 {[%clk 0:00:15]} 0-1


[Site "https://www.chess.com"]